fUST/lending_fUST_20241121
["ID","MTS","AMOUNT","RATE_DAILY","PERIOD"]
[342840201,1732174239229,-153.0,0.00021945,2]
[342840202,1732174239239,-153.0,0.00021945,2]
[342840203,1732174239250,-153.0,0.00021945,2]
[342840204,1732174239261,-153.0,0.00021945,2]
[342840205,1732174239271,-153.0,0.00021945,2]
[342840206,1732174239280,-153.0,0.00021945,2]
[342840207,1732174239289,-153.0,0.00021945,2]
[342840208,1732174239302,-500.0,0.00021973,2]
[342840209,1732174239312,-249.43521953,0.00021973,2]
[342840210,1732174239322,-181.06152624,0.00021999,2]
[342840211,1732174239331,-30726.85017166,0.00022,15]
[342840234,1732174243715,-500.0,0.00021917,2]
[342840235,1732174243725,-500.0,0.00021917,2]
[342840236,1732174243735,-500.0,0.00021917,2]
[342840237,1732174243744,-13053.0,0.00022,15]
[342840238,1732174243757,-9182.92298636,0.00022,15]
[342840317,1732174246510,-9782.68078888,0.00022,15]
[342841103,1732175432633,-219.567297,0.00013973,2]
[342841105,1732175432644,-300.0,0.00018487,2]
[342841107,1732175432657,-300.0,0.00018487,2]
[342841109,1732175432666,-421.251653,0.00018488,2]
[342841111,1732175432678,-16427.900216,0.00018488,2]
[342841112,1732175432687,-235.837189,0.0001855,2]
[342841113,1732175432697,-2026.97214,0.00018551,2]
[342841114,1732175432706,-2463.7249385,0.00018766,2]
[342841115,1732175432717,-2026.97214,0.00019236,2]
[342841116,1732175432727,-24900.0,0.00019491,2]
[342841117,1732175432737,-4716.21942186,0.00019512,2]
[342841118,1732175432746,-2026.97214,0.00019921,2]
[342841119,1732175432756,-420.0,0.00020162,2]
[342841120,1732175432765,-420.0,0.00020336,2]
[342841121,1732175432774,-219.567297,0.00020447,2]
[342841122,1732175432783,-4716.21942185,0.00020815,2]
[342841123,1732175432792,-153.0,0.00021096,2]
[342841124,1732175432801,-314.1649161,0.0002126,2]
[342841125,1732175432811,-437.4298168,0.0002126,2]
[342841126,1732175432820,-227.1739024,0.0002126,2]
[342841127,1732175432829,-304.475979,0.0002126,2]
[342841128,1732175432839,-212.5677706,0.0002126,2]
[342841129,1732175432849,-212.5677706,0.0002126,2]
[342841130,1732175432859,-151.0,0.000216,3]
[342841131,1732175432868,-151.0,0.000216,3]
[342841132,1732175432877,-499.18708409,0.000216,2]
[342841133,1732175432887,-500.0,0.00021616,2]
[342841134,1732175432897,-500.0,0.00021616,2]
[342841135,1732175432908,-500.0,0.00021616,2]
[342841136,1732175432917,-500.0,0.00021616,2]
[342841137,1732175432927,-500.0,0.00021616,2]
[342841138,1732175432937,-500.0,0.00021616,2]
[342841139,1732175432947,-500.0,0.00021616,2]
[342841140,1732175432957,-500.0,0.00021616,2]
[342841141,1732175432967,-500.0,0.00021616,2]
[342841142,1732175432976,-500.0,0.00021616,2]
[342841143,1732175432986,-500.0,0.00021616,2]
[342841144,1732175432996,-500.0,0.00021616,2]
[342841145,1732175433006,-500.0,0.00021616,2]
[342841146,1732175433016,-500.0,0.00021616,2]
[342841147,1732175433026,-500.0,0.00021616,2]
[342841148,1732175433036,-340.0,0.00021616,2]
[342841149,1732175433046,-380.58872275,0.00021616,2]
[342841150,1732175433055,-500.0,0.00021616,2]
[342841152,1732175433066,-500.0,0.00021616,2]
[342841154,1732175433076,-500.0,0.00021616,2]
[342841156,1732175433086,-500.0,0.00021616,2]
[342841158,1732175433096,-500.0,0.00021616,2]
[342841160,1732175433106,-500.0,0.00021616,2]
[342841162,1732175433116,-500.0,0.00021616,2]
[342841164,1732175433126,-500.0,0.00021616,2]
[342841166,1732175433135,-500.0,0.00021616,2]
[342841168,1732175433145,-500.0,0.00021616,2]
[342841170,1732175433159,-500.0,0.00021616,2]
[342841172,1732175433168,-293.11515944,0.00021617,2]
[342841174,1732175433178,-78523.3439789,0.00021617,2]
[342841176,1732175433190,-137917.49495729,0.00021617,2]
[342841178,1732175433207,-33559.16106381,0.00021617,2]
[342841180,1732175433217,-5726.1095833,0.00021668,2]
[342841183,1732175433230,-1519.84143823,0.00021668,2]
[342841185,1732175433241,-499.18708406,0.00021675,2]
[342841187,1732175433251,-151.0,0.000217,3]
[342841188,1732175433261,-151.0,0.000217,3]
[342841190,1732175433271,-151.0,0.000217,3]
[342841192,1732175433282,-151.0,0.000217,4]
[342841194,1732175433292,-151.0,0.000217,3]
[342841196,1732175433302,-151.0,0.000217,4]
[342841198,1732175433313,-499.18708406,0.0002175,2]
[342841200,1732175433324,-151.0,0.000218,4]
[342841201,1732175433334,-151.0,0.000218,3]
[342841202,1732175433345,-151.0,0.000218,3]
[342841203,1732175433355,-151.0,0.000218,4]
[342841204,1732175433366,-151.0,0.000218,3]
[342841205,1732175433376,-499.18708406,0.00021825,2]
[342841206,1732175433386,-151.0,0.000219,4]
[342841207,1732175433396,-151.0,0.000219,3]
[342841208,1732175433409,-151.0,0.000219,4]
[342841209,1732175433419,-151.0,0.000219,3]
[342841210,1732175433429,-499.18708406,0.000219,2]
[342841211,1732175433438,-589.68,0.00021917,2]
[342841212,1732175433449,-151.22,0.00021917,2]
[342841213,1732175433459,-190.53,0.00021917,2]
[342841214,1732175433468,-200.0,0.00021917,2]
[342841215,1732175433480,-602.228217,0.00021917,2]
[342841216,1732175433489,-256.45212123,0.00021917,2]
[342841217,1732175433502,-243.54787877,0.00021917,2]
[342841219,1732175433602,-500.0,0.00021917,2]
[342841220,1732175433614,-500.0,0.00021917,2]
[342841221,1732175433625,-500.0,0.00021917,2]
[342841222,1732175433635,-500.0,0.00021917,2]
[342841223,1732175433644,-500.0,0.00021917,2]
[342841224,1732175433657,-500.0,0.00021917,2]
[342841225,1732175433667,-500.0,0.00021917,2]
[342841226,1732175433677,-500.0,0.00021917,2]
[342841227,1732175433688,-500.0,0.00021917,2]
[342841228,1732175433697,-500.0,0.00021917,2]
[342841229,1732175433708,-553.96,0.00021917,2]
[342841230,1732175433718,-327.56392298,0.00021917,2]
[342841231,1732175433728,-500.0,0.00021917,2]
[342841232,1732175433738,-500.0,0.00021917,2]
[342841233,1732175433748,-571.81,0.00021917,2]
[342841234,1732175433758,-500.0,0.00021917,2]
[342841235,1732175433768,-500.0,0.00021917,2]
[342841236,1732175433777,-120.71470481,0.00021917,2]
[342841237,1732175433790,-379.28529519,0.00021917,2]
[342841238,1732175433799,-500.0,0.00021917,2]
[342841239,1732175433809,-500.0,0.00021917,2]
[342841240,1732175433818,-500.0,0.00021917,2]
[342841241,1732175433828,-500.0,0.00021917,2]
[342841242,1732175433838,-339.16967947,0.00021917,2]
[342841243,1732175433848,-562.63174268,0.00021917,2]
[342841244,1732175433857,-500.0,0.00021917,2]
[342841245,1732175433867,-568.87902567,0.00021917,2]
[342841246,1732175433876,-500.0,0.00021917,2]
[342841247,1732175433886,-500.0,0.00021917,2]
[342841248,1732175433897,-500.0,0.00021917,2]
[342841249,1732175433908,-500.0,0.00021917,2]
[342841250,1732175433918,-500.0,0.00021917,2]
[342841251,1732175433927,-565.87,0.00021917,2]
[342841252,1732175433937,-500.0,0.00021917,2]
[342841253,1732175433947,-500.0,0.00021917,2]
[342841254,1732175433957,-521.31219205,0.00021917,2]
[342841255,1732175433967,-500.0,0.00021917,2]
[342841256,1732175433977,-500.0,0.00021917,2]
[342841257,1732175433987,-500.0,0.00021917,2]
[342841258,1732175433997,-500.0,0.00021917,2]
[342841259,1732175434007,-500.0,0.00021917,2]
[342841260,1732175434016,-500.0,0.00021917,2]
[342841261,1732175434026,-500.0,0.00021917,2]
[342841262,1732175434037,-500.0,0.00021917,2]
[342841263,1732175434047,-638.64,0.00021917,2]
[342841264,1732175434057,-500.0,0.00021917,2]
[342841265,1732175434067,-500.0,0.00021917,2]
[342841266,1732175434079,-500.0,0.00021917,2]
[342841267,1732175434088,-500.0,0.00021917,2]
[342841268,1732175434098,-500.0,0.00021917,2]
[342841269,1732175434109,-500.0,0.00021917,2]
[342841270,1732175434119,-500.0,0.00021917,2]
[342841271,1732175434129,-500.0,0.00021917,2]
[342841272,1732175434139,-500.0,0.00021917,2]
[342841273,1732175434149,-500.0,0.00021917,2]
[342841274,1732175434159,-355.04138313,0.00021917,2]
[342841275,1732175434169,-500.0,0.00021917,2]
[342841276,1732175434179,-4874.04,0.00021917,2]
[342841277,1732175434189,-500.0,0.00021917,2]
[342841278,1732175434198,-500.0,0.00021917,2]
[342841279,1732175434209,-500.0,0.00021917,2]
[342841280,1732175434218,-510.62,0.00021917,2]
[342841281,1732175434227,-847.39,0.00021917,2]
[342841282,1732175434237,-200.4294368,0.00021917,2]
[342841283,1732175434247,-500.0,0.00021917,2]
[342841284,1732175434257,-719.33,0.00021917,2]
[342841285,1732175434267,-500.0,0.00021917,2]
[342841286,1732175434277,-495.67523791,0.00021917,2]
[342841287,1732175434287,-6863.23,0.00021917,2]
[342841288,1732175434297,-500.0,0.00021917,2]
[342841289,1732175434307,-500.0,0.00021917,2]
[342841290,1732175434317,-2283.16,0.00021917,2]
[342841291,1732175434327,-500.0,0.00021917,2]
[342841292,1732175434337,-500.0,0.00021917,2]
[342841293,1732175434347,-500.0,0.00021917,2]
[342841294,1732175434357,-1218.25,0.00021917,2]
[342841295,1732175434367,-500.0,0.00021917,2]
[342841296,1732175434377,-500.0,0.00021917,2]
[342841297,1732175434386,-650.43,0.00021917,2]
[342841298,1732175434397,-500.0,0.00021917,2]
[342841299,1732175434408,-500.0,0.00021917,2]
[342841300,1732175434417,-500.0,0.00021917,2]
[342841301,1732175434426,-500.0,0.00021917,2]
[342841302,1732175434436,-455.26571704,0.00021917,2]
[342841303,1732175434446,-500.0,0.00021917,2]
[342841304,1732175434456,-324.8483789,0.00021917,2]
[342841305,1732175434466,-500.0,0.00021917,2]
[342841306,1732175434481,-500.0,0.00021917,2]
[342841307,1732175434497,-500.0,0.00021917,2]
[342841308,1732175434511,-187.25278679,0.00021917,2]
[342841309,1732175434525,-500.0,0.00021917,2]
[342841310,1732175434537,-500.0,0.00021917,2]
[342841311,1732175434551,-500.0,0.00021917,2]
[342841312,1732175434566,-500.0,0.00021917,2]
[342841313,1732175434582,-500.0,0.00021917,2]
[342841314,1732175434595,-500.0,0.00021917,2]
[342841315,1732175434608,-500.9358538,0.00021917,2]
[342841316,1732175434622,-500.0,0.00021917,2]
[342841317,1732175434637,-500.0,0.00021917,2]
[342841318,1732175434654,-1695.84,0.00021917,2]
[342841319,1732175434667,-532.29573459,0.00021917,2]
[342841320,1732175434680,-212.56,0.00021917,2]
[342841321,1732175434693,-500.0,0.00021917,2]
[342841322,1732175434705,-500.0,0.00021917,2]
[342841323,1732175434716,-500.0,0.00021917,2]
[342841324,1732175434727,-500.0,0.00021917,2]
[342841325,1732175434741,-500.0,0.00021917,2]
[342841326,1732175434753,-500.0,0.00021917,2]
[342841327,1732175434765,-500.0,0.00021917,2]
[342841328,1732175434779,-500.0,0.00021917,2]
[342841329,1732175434791,-500.0,0.00021917,2]
[342841330,1732175434805,-502.15219496,0.00021917,2]
[342841331,1732175434819,-500.0,0.00021917,2]
[342841332,1732175434833,-500.0,0.00021917,2]
[342841333,1732175434845,-500.0,0.00021917,2]
[342841334,1732175434855,-500.0,0.00021917,2]
[342841335,1732175434866,-500.0,0.00021917,2]
[342841336,1732175434879,-500.0,0.00021917,2]
[342841337,1732175434893,-500.0,0.00021917,2]
[342841338,1732175434906,-500.0,0.00021917,2]
[342841339,1732175434918,-843.01,0.00021917,2]
[342841340,1732175434930,-500.0,0.00021917,2]
[342841341,1732175434941,-500.0,0.00021917,2]
[342841342,1732175434955,-1273.68,0.00021917,2]
[342841343,1732175434966,-500.0,0.00021917,2]
[342841344,1732175434977,-500.0,0.00021917,2]
[342841345,1732175434988,-500.0,0.00021917,2]
[342841346,1732175434999,-556.90215046,0.00021917,2]
[342841347,1732175435011,-500.0,0.00021917,2]
[342841348,1732175435022,-500.0,0.00021973,2]
[342841349,1732175435036,-500.91785115,0.00021973,2]
[342841350,1732175435047,-465.20927585,0.00021973,2]
[342841351,1732175435059,-500.0,0.00021973,2]
[342841352,1732175435071,-500.89544524,0.00021973,2]
[342841353,1732175435082,-501.31636029,0.00021973,2]
[342841354,1732175435094,-500.0,0.00021973,2]
[342841355,1732175435106,-500.80713521,0.00021973,2]
[342841356,1732175435118,-500.0,0.00021973,2]
[342841357,1732175435129,-587.0,0.00021988,2]
[342841358,1732175435141,-68201.60214377,0.0002199,2]
[342841359,1732175435157,-390.0,0.0002199,6]
[342841360,1732175435169,-150.35841584,0.00021998,2]
[342841361,1732175435181,-312.92236051,0.00021998,2]
[342841362,1732175435192,-898387.55923469,0.00022,15]
[342841371,1732175438660,-1609.241438,0.00019491,2]
[342841372,1732175438670,-538.32,0.00021917,2]
[342841373,1732175438680,-500.0,0.00021917,2]
[342841374,1732175438691,-500.0,0.00021973,2]
[342841375,1732175438858,-31672.59241507,0.00022,15]
[342841379,1732175440443,-5865.63930324,0.00022,15]
[342841380,1732175440455,-365.808,0.00022,15]
[342841381,1732175440559,-1546.78600054,0.00022,15]
[342841428,1732175443730,-500.0,0.00021917,2]
[342841429,1732175443741,-500.0,0.00021917,2]
[342841430,1732175443751,-1429.563,0.00022,15]
[342841431,1732175443764,-38900.0,0.00022,15]
[342841454,1732175446534,-530.88,0.00021917,2]
[342841455,1732175446543,-715.80856,0.00022,15]
[342841456,1732175446555,-5576.0,0.00022,15]
[342841462,1732175533020,300.0,0.00016,6]
[342841468,1732175686719,300.0,0.00016,6]
[342841846,1732176635367,-205.498736,0.00013973,2]
[342841847,1732176635377,-65.665364,0.00018287,2]
[342841848,1732176635388,-317.68702962,0.00018287,2]
[342841949,1732176638735,-2616.64760638,0.00018287,2]
[342841950,1732176638744,-250.0,0.00018431,2]
[342841951,1732176638754,-3362.4319481,0.00019006,2]
[342841952,1732176638764,-300.0,0.00019028,2]
[342841953,1732176638773,-300.0,0.00019028,2]
[342841954,1732176638782,-8993.377972,0.00019029,2]
[342842013,1732176640577,-453.40201646,0.00019029,2]
[342844125,1732176787718,203.0,0.00025,120]
[342844251,1732177831885,-300.0,0.00013672,2]
[342844252,1732177831895,-300.0,0.00013672,2]
[342844253,1732177831905,-10556.20514174,0.00013673,2]
[342844255,1732177831915,-252.41768775,0.00013773,2]
[342844256,1732177831924,-194.94459352,0.00013773,2]
[342844257,1732177831933,-207.23637716,0.00013873,2]
[342844258,1732177831943,-228.726587,0.00013973,2]
[342844259,1732177831953,-420.0,0.00014983,2]
[342844260,1732177831962,-420.0,0.00015039,2]
[342844261,1732177831972,-112.42018036,0.0001642,2]
[342844262,1732177831988,-474.57981964,0.0001642,2]
[342844263,1732177831997,-319.99793036,0.00016543,2]
[342844264,1732177832008,-267.00206964,0.00016543,2]
[342844265,1732177832018,-493.2677209,0.00016967,2]
[342844266,1732177832027,-534.754606,0.00017362,2]
[342844267,1732177832037,-278.2162715,0.00017417,2]
[342844268,1732177832046,-1182.1208589,0.00017505,2]
[342844269,1732177832056,-24900.0,0.0001761,2]
[342844270,1732177832065,-381.5754325,0.00017724,2]
[342844271,1732177832074,-823.0,0.00017995,2]
[342844272,1732177832083,-965.19114,0.00018041,2]
[342844273,1732177832093,-823.0,0.00018197,2]
[342844274,1732177832102,-965.19114,0.00018725,2]
[342844275,1732177832111,-10503.19082818,0.00018737,2]
[342844276,1732177832120,-273.75702687,0.00019029,2]
[342844277,1732177832129,-361.97477656,0.00019029,2]
[342844278,1732177832138,-4822.45728764,0.00019078,2]
[342844279,1732177832148,-164.259737,0.00019178,2]
[342844280,1732177832157,-168.291276,0.00019178,2]
[342844281,1732177832167,-314.4232781,0.000192,2]
[342844282,1732177832176,-965.19114,0.0001941,2]
[342844283,1732177832184,-212.5677706,0.00019616,2]
[342844284,1732177832196,-1040.0,0.00019721,2]
[342844285,1732177832205,-3105.76509012,0.0001984,4]
[342844286,1732177832215,-212.5677706,0.00019956,2]
[342844287,1732177832225,-17762.9372218,0.0001999,2]
[342844288,1732177832235,-12529.62271964,0.0002,2]
[342844289,1732177832244,-325.36760771,0.0002,5]
[342844290,1732177832253,-300.0,0.0002,6]
[342844291,1732177832262,-351.61,0.0002,7]
[342844292,1732177832272,-1152.0,0.00020017,2]
[342844293,1732177832281,-212.5677706,0.00020156,2]
[342844294,1732177832291,-212.5677706,0.00020356,2]
[342844295,1732177832301,-416.6764996,0.00020438,2]
[342844296,1732177832310,-153.0,0.00020438,2]
[342844297,1732177832321,-153.0,0.00020438,2]
[342844298,1732177832331,-153.0,0.00020438,2]
[342844299,1732177832341,-212.5677706,0.00020438,2]
[342844300,1732177832350,-153.0,0.00020438,2]
[342844301,1732177832360,-212.5677706,0.00020438,2]
[342844302,1732177832370,-153.0,0.00020438,2]
[342844303,1732177832379,-335.3302071,0.00020438,2]
[342844304,1732177832388,-212.5677706,0.00020438,2]
[342844305,1732177832397,-212.5677706,0.00020438,2]
[342844306,1732177832406,-212.5677706,0.00020438,2]
[342844307,1732177832416,-212.5677706,0.00020438,2]
[342844308,1732177832426,-212.5677706,0.00020438,2]
[342844309,1732177832436,-212.5677706,0.00020438,2]
[342844310,1732177832445,-4822.45728761,0.00020439,2]
[342844311,1732177832455,-228.726587,0.00020447,2]
[342844312,1732177832464,-32000.0,0.00021,2]
[342844313,1732177832475,-212.5677706,0.0002126,2]
[342844314,1732177832484,-212.5677706,0.0002126,2]
[342844315,1732177832494,-212.5677706,0.0002126,2]
[342844316,1732177832503,-212.5677706,0.0002126,2]
[342844317,1732177832512,-212.5677706,0.0002126,2]
[342844318,1732177832523,-212.5677706,0.0002126,2]
[342844319,1732177832533,-212.5677706,0.0002126,2]
[342844320,1732177832542,-5753.38735589,0.00021316,2]
[342844321,1732177832552,-429.76083956,0.00021316,2]
[342844322,1732177832561,-223.12053092,0.00021416,2]
[342844323,1732177832570,-190.93469297,0.00021416,2]
[342844324,1732177832580,-197.21993576,0.00021416,2]
[342844325,1732177832590,-156.18437164,0.00021416,2]
[342844326,1732177832599,-501.15233569,0.00021416,2]
[342844327,1732177832608,-250000.0,0.00021417,2]
[342844328,1732177832618,-429.76083954,0.00021462,2]
[342844329,1732177832628,-503.38803449,0.00021473,2]
[342844330,1732177832637,-500.0,0.00021473,2]
[342844331,1732177832646,-300.0,0.000216,7]
[342844332,1732177832655,-300.0,0.000216,6]
[342844333,1732177832664,-310.0,0.000216,6]
[342844334,1732177832674,-429.76083954,0.00021608,2]
[342844335,1732177832683,-429.76083954,0.00021754,2]
[342844336,1732177832692,-300.0,0.000218,7]
[342844337,1732177832702,-1000.0,0.000218,2]
[342844338,1732177832711,-4822.45728761,0.00021801,2]
[342844339,1732177832722,-59460.0,0.000219,2]
[342844340,1732177832731,-151.0,0.000219,4]
[342844341,1732177832740,-299.336699,0.000219,3]
[342844342,1732177832750,-429.76083954,0.000219,2]
[342844343,1732177832760,-500.0,0.00021917,2]
[342844344,1732177832770,-626.82,0.00021917,2]
[342844345,1732177832779,-500.0,0.00021917,2]
[342844346,1732177832788,-500.0,0.00021917,2]
[342844347,1732177832797,-500.0,0.00021917,2]
[342844348,1732177832807,-500.0,0.00021917,2]
[342844349,1732177832816,-500.0,0.00021917,2]
[342844350,1732177832826,-500.0,0.00021917,2]
[342844351,1732177832835,-500.0,0.00021917,2]
[342844352,1732177832844,-565.11,0.00021917,2]
[342844353,1732177832854,-864.69,0.00021917,2]
[342844354,1732177832863,-507.07363414,0.00021917,2]
[342844355,1732177832872,-500.0,0.00021917,2]
[342844356,1732177832881,-500.0,0.00021917,2]
[342844357,1732177832890,-500.0,0.00021917,2]
[342844358,1732177832900,-668.1,0.00021917,2]
[342844359,1732177832909,-352.51476679,0.00021917,2]
[342844360,1732177832918,-500.0,0.00021917,2]
[342844361,1732177832927,-500.0,0.00021917,2]
[342844362,1732177832937,-500.0,0.00021917,2]
[342844363,1732177832946,-500.96061046,0.00021917,2]
[342844364,1732177832955,-526.05865371,0.00021917,2]
[342844365,1732177832965,-500.0,0.00021917,2]
[342844366,1732177832975,-480.8117428,0.00021917,2]
[342844367,1732177832985,-500.0,0.00021917,2]
[342844368,1732177832994,-500.0,0.00021917,2]
[342844369,1732177833002,-500.0,0.00021917,2]
[342844370,1732177833012,-500.0,0.00021917,2]
[342844371,1732177833022,-200.0,0.00021917,2]
[342844372,1732177833031,-500.0,0.00021917,2]
[342844373,1732177833040,-378.23140539,0.00021917,2]
[342844374,1732177833050,-500.0,0.00021917,2]
[342844375,1732177833060,-500.0,0.00021917,2]
[342844376,1732177833070,-500.0,0.00021917,2]
[342844377,1732177833080,-500.0,0.00021917,2]
[342844378,1732177833089,-500.0,0.00021917,2]
[342844379,1732177833099,-500.0,0.00021917,2]
[342844380,1732177833108,-533.71527276,0.00021917,2]
[342844381,1732177833117,-500.0,0.00021917,2]
[342844382,1732177833126,-500.0,0.00021917,2]
[342844383,1732177833136,-500.0,0.00021917,2]
[342844384,1732177833145,-500.0,0.00021917,2]
[342844385,1732177833155,-1483.52,0.00021917,2]
[342844386,1732177833164,-500.0,0.00021917,2]
[342844387,1732177833173,-213.92217917,0.00021917,2]
[342844388,1732177833182,-500.0,0.00021917,2]
[342844389,1732177833192,-275.74773903,0.00021917,2]
[342844390,1732177833202,-500.0,0.00021917,2]
[342844391,1732177833211,-545.2154977,0.00021917,2]
[342844392,1732177833220,-492.24369757,0.00021917,2]
[342844393,1732177833230,-500.0,0.00021917,2]
[342844394,1732177833240,-279.39149364,0.00021917,2]
[342844395,1732177833250,-500.0,0.00021917,2]
[342844396,1732177833260,-500.0,0.00021917,2]
[342844397,1732177833270,-500.0,0.00021917,2]
[342844398,1732177833280,-588.93,0.00021917,2]
[342844399,1732177833290,-500.0,0.00021917,2]
[342844400,1732177833299,-534.68,0.00021917,2]
[342844401,1732177833309,-500.0,0.00021917,2]
[342844402,1732177833320,-771.04,0.00021917,2]
[342844403,1732177833331,-500.0,0.00021917,2]
[342844404,1732177833341,-623.4,0.00021917,2]
[342844405,1732177833351,-1412.36,0.00021917,2]
[342844406,1732177833362,-500.0,0.00021917,2]
[342844407,1732177833372,-500.0,0.00021917,2]
[342844408,1732177833381,-500.0,0.00021917,2]
[342844409,1732177833392,-500.0,0.00021917,2]
[342844410,1732177833403,-500.0,0.00021917,2]
[342844411,1732177833413,-500.0,0.00021917,2]
[342844412,1732177833423,-394.52199259,0.00021917,2]
[342844413,1732177833433,-500.0,0.00021917,2]
[342844414,1732177833443,-500.0,0.00021917,2]
[342844415,1732177833453,-500.0,0.00021917,2]
[342844416,1732177833463,-500.0,0.00021917,2]
[342844417,1732177833473,-500.0,0.00021917,2]
[342844418,1732177833483,-317.86171812,0.00021917,2]
[342844419,1732177833493,-500.0,0.00021917,2]
[342844420,1732177833503,-500.0,0.00021917,2]
[342844421,1732177833512,-500.0,0.00021917,2]
[342844422,1732177833522,-500.0,0.00021917,2]
[342844423,1732177833531,-500.0,0.00021917,2]
[342844424,1732177833541,-500.0,0.00021917,2]
[342844425,1732177833550,-500.0,0.00021917,2]
[342844426,1732177833560,-631.46986556,0.00021917,2]
[342844427,1732177833569,-500.0,0.00021917,2]
[342844428,1732177833578,-5531.43,0.00021917,2]
[342844429,1732177833588,-500.0,0.00021917,2]
[342844430,1732177833597,-582.19195044,0.00021917,2]
[342844431,1732177833607,-500.0,0.00021917,2]
[342844432,1732177833618,-500.0,0.00021917,2]
[342844433,1732177833628,-500.0,0.00021917,2]
[342844434,1732177833637,-500.0,0.00021917,2]
[342844435,1732177833647,-2751.1,0.00021917,2]
[342844436,1732177833657,-296.48,0.00021917,2]
[342844437,1732177833667,-500.0,0.00021917,2]
[342844438,1732177833677,-500.0,0.00021917,2]
[342844439,1732177833688,-309.14085817,0.00021917,2]
[342844440,1732177833697,-2170.08,0.00021917,2]
[342844441,1732177833707,-1418.72,0.00021917,2]
[342844442,1732177833717,-500.0,0.00021917,2]
[342844443,1732177833729,-647.02,0.00021917,2]
[342844444,1732177833739,-500.0,0.00021917,2]
[342844445,1732177833748,-500.0,0.00021917,2]
[342844446,1732177833758,-731.03,0.00021917,2]
[342844447,1732177833768,-11336.17,0.00021917,2]
[342844448,1732177833777,-500.0,0.00021917,2]
[342844449,1732177833787,-779.92,0.00021917,2]
[342844450,1732177833796,-500.0,0.00021917,2]
[342844451,1732177833805,-500.0,0.00021917,2]
[342844452,1732177833815,-500.0,0.00021917,2]
[342844453,1732177833824,-1967.33,0.00021917,2]
[342844454,1732177833833,-500.0,0.00021917,2]
[342844455,1732177833843,-500.0,0.00021917,2]
[342844456,1732177833853,-500.0,0.00021917,2]
[342844457,1732177833862,-500.0,0.00021917,2]
[342844458,1732177833953,-1056.93,0.00021917,2]
[342844459,1732177833963,-500.0,0.00021917,2]
[342844460,1732177833974,-2382.97,0.00021917,2]
[342844461,1732177833984,-527.99,0.00021917,2]
[342844462,1732177833993,-500.0,0.00021917,2]
[342844463,1732177834003,-500.0,0.00021917,2]
[342844464,1732177834013,-520.71,0.00021917,2]
[342844465,1732177834022,-635.7,0.00021917,2]
[342844466,1732177834031,-500.0,0.00021917,2]
[342844467,1732177834041,-500.0,0.00021917,2]
[342844468,1732177834050,-500.0,0.00021917,2]
[342844469,1732177834059,-500.0,0.00021917,2]
[342844470,1732177834069,-500.0,0.00021917,2]
[342844471,1732177834079,-500.0,0.00021917,2]
[342844472,1732177834089,-553.47,0.00021917,2]
[342844473,1732177834099,-500.0,0.00021917,2]
[342844474,1732177834108,-500.0,0.00021917,2]
[342844475,1732177834118,-457.59,0.00021917,2]
[342844476,1732177834128,-500.0,0.00021917,2]